fUSD/lending_fUSD_20260531
["ID","MTS","AMOUNT","RATE_DAILY","PERIOD"]
[423497481,1780168241000,-553.36280109,0.00021785,2]
[423497454,1780168241000,-500.0,0.00021785,2]
[423497462,1780168241000,-500.0,0.00021785,2]
[423497423,1780168241000,-500.0,0.00021785,2]
[423497427,1780168241000,-500.0,0.00021785,2]
[423497429,1780168241000,-500.0,0.00021785,2]
[423497432,1780168241000,-551.39,0.00021785,2]
[423497424,1780168241000,-500.0,0.00021785,2]
[423497435,1780168241000,-551.39,0.00021785,2]
[423497434,1780168241000,-551.39,0.00021785,2]
[423497433,1780168241000,-551.39,0.00021785,2]
[423497428,1780168241000,-500.0,0.00021785,2]
[423497431,1780168241000,-551.39,0.00021785,2]
[423497430,1780168241000,-500.0,0.00021785,2]
[423497441,1780168241000,-551.39,0.00021785,2]
[423497426,1780168241000,-500.0,0.00021785,2]
[423497448,1780168241000,-500.0,0.00021785,2]
[423497453,1780168241000,-500.0,0.00021785,2]
[423497459,1780168241000,-500.0,0.00021785,2]
[423497456,1780168241000,-500.0,0.00021785,2]
[423497458,1780168241000,-500.0,0.00021785,2]
[423497447,1780168241000,-503.21523285,0.00021785,2]
[423497451,1780168241000,-500.0,0.00021785,2]
[423497443,1780168241000,-551.39,0.00021785,2]
[423497436,1780168241000,-551.39,0.00021785,2]
[423497449,1780168241000,-500.0,0.00021785,2]
[423497450,1780168241000,-500.0,0.00021785,2]
[423497437,1780168241000,-551.39,0.00021785,2]
[423497439,1780168241000,-551.39,0.00021785,2]
[423497445,1780168241000,-551.39,0.00021785,2]
[423497527,1780168242000,-347.0,0.00023,2]
[423497524,1780168242000,-10000.0,0.00022982,2]
[423497523,1780168242000,-4600.0,0.000229,8]
[423497521,1780168242000,-9756.26,0.00022691,2]
[423497517,1780168242000,-2319.72410669,0.00022315,2]
[423497518,1780168242000,-189.8,0.00022353,2]
[423497522,1780168242000,-2405.55389863,0.00022863,2]
[423497520,1780168242000,-400.57,0.00022691,2]
[423497519,1780168242000,-808.16,0.00022466,2]
[423497515,1780168242000,-781.3692469,0.00022042,2]
[423497525,1780168242000,-220.0,0.00023,2]
[423497529,1780168242000,-154.0,0.00023,2]
[423497536,1780168242000,-449.04,0.000235,7]
[423497531,1780168242000,-184.0,0.00023,2]
[423497532,1780168242000,-151.0,0.0002315,4]
[423497534,1780168242000,-2494.55939288,0.00023411,2]
[423497533,1780168242000,-188.59,0.00023288,2]
[423497528,1780168242000,-379.0,0.00023,2]
[423497535,1780168242000,-2000.0,0.00023473,2]
[423497543,1780168242000,-379.0,0.00024,2]
[423497545,1780168242000,-742.0,0.00024,2]
[423497537,1780168242000,-219.73804894,0.00023537,2]
[423497540,1780168242000,-220.0,0.00024,2]
[423497526,1780168242000,-226.0,0.00023,2]
[423497541,1780168242000,-226.0,0.00024,2]
[423497530,1780168242000,-742.0,0.00023,2]
[423497516,1780168242000,-357.31,0.00022057,2]
[423497497,1780168242000,-500.0,0.00021785,2]
[423497512,1780168242000,-742.0,0.00022,2]
[423497544,1780168242000,-154.0,0.00024,2]
[423497488,1780168242000,-500.0,0.00021785,2]
[423497489,1780168242000,-500.0,0.00021785,2]
[423497487,1780168242000,-500.0,0.00021785,2]
[423497491,1780168242000,-500.0,0.00021785,2]
[423497490,1780168242000,-500.0,0.00021785,2]
[423497501,1780168242000,-500.0,0.00021785,2]
[423497502,1780168242000,-500.0,0.00021785,2]
[423497492,1780168242000,-500.0,0.00021785,2]
[423497493,1780168242000,-500.0,0.00021785,2]
[423497494,1780168242000,-500.0,0.00021785,2]
[423497495,1780168242000,-500.0,0.00021785,2]
[423497511,1780168242000,-154.0,0.00022,2]
[423497496,1780168242000,-500.0,0.00021785,2]
[423497500,1780168242000,-500.0,0.00021785,2]
[423497498,1780168242000,-500.0,0.00021785,2]
[423497503,1780168242000,-500.0,0.00021785,2]
[423497505,1780168242000,-500.0,0.00021785,2]
[423497504,1780168242000,-500.0,0.00021785,2]
[423497506,1780168242000,-5000.0,0.00021918,2]
[423497508,1780168242000,-226.0,0.00022,2]
[423497509,1780168242000,-347.0,0.00022,2]
[423497507,1780168242000,-220.0,0.00022,2]
[423497510,1780168242000,-379.0,0.00022,2]
[423497514,1780168242000,-450.0,0.00022,2]
[423497513,1780168242000,-184.0,0.00022,2]
[423497499,1780168242000,-500.0,0.00021785,2]
[423497548,1780168242000,-151.0,0.0002415,4]
[423497547,1780168242000,-500.0,0.00024,2]
[423497601,1780168242000,-313.45446805,0.00026048,2]
[423497578,1780168242000,-307.43907439,0.00025567,2]
[423497577,1780168242000,-210.86201537,0.0002515,4]
[423497576,1780168242000,-150.31688556,0.00025109,2]
[423497574,1780168242000,-204.64,0.00025,2]
[423497573,1780168242000,-188.0,0.00025,2]
[423497580,1780168242000,-2884.75459676,0.00025603,2]
[423497581,1780168242000,-2000.0,0.00025607,2]
[423497583,1780168242000,-500.0,0.00026,2]
[423497582,1780168242000,-152.0,0.00025629,2]
[423497594,1780168242000,-551.39,0.00026048,2]
[423497586,1780168242000,-151.0,0.00026045,7]
[423497589,1780168242000,-500.0,0.00026048,2]
[423497575,1780168242000,-2781.82699784,0.00025055,2]
[423497587,1780168242000,-500.0,0.00026048,2]
[423497591,1780168242000,-500.0,0.00026048,2]
[423497585,1780168242000,-151.0,0.00026045,7]
[423497592,1780168242000,-500.0,0.00026048,2]
[423497588,1780168242000,-500.0,0.00026048,2]
[423497595,1780168242000,-551.39,0.00026048,2]
[423497590,1780168242000,-500.0,0.00026048,2]
[423497597,1780168242000,-551.39,0.00026048,2]
[423497600,1780168242000,-500.0,0.00026048,2]
[423497599,1780168242000,-419.13,0.00026048,2]
[423497596,1780168242000,-551.39,0.00026048,2]
[423497598,1780168242000,-551.39,0.00026048,2]
[423497602,1780168242000,-207.58439745,0.00026048,2]
[423497593,1780168242000,-551.39,0.00026048,2]
[423497584,1780168242000,-550.0,0.00026,2]
[423497542,1780168242000,-347.0,0.00024,2]
[423497568,1780168242000,-351.0,0.00025,2]
[423497546,1780168242000,-184.0,0.00024,2]
[423497539,1780168242000,-2586.85809042,0.00023959,2]
[423497538,1780168242000,-404.0,0.000238,5]
[423497549,1780168242000,-13939.90279654,0.00024194,2]
[423497560,1780168242000,-500.0,0.0002472,2]
[423497555,1780168242000,-12082.93241268,0.0002443,2]
[423497556,1780168242000,-2682.57183977,0.00024507,2]
[423497579,1780168242000,-152.0,0.00025573,2]
[423497551,1780168242000,-222.1416408,0.00024364,2]
[423497553,1780168242000,-389.178325,0.00024364,2]
[423497550,1780168242000,-189.8,0.00024324,2]
[423497558,1780168242000,-1000.0,0.00024658,2]
[423497559,1780168242000,-500.0,0.00024712,2]
[423497557,1780168242000,-213.32,0.00024658,2]
[423497554,1780168242000,-20471.33782947,0.00024398,2]
[423497567,1780168242000,-242.0,0.00025,2]
[423497552,1780168242000,-569.6088108,0.00024364,2]
[423497564,1780168242000,-1429.21,0.0002472,2]
[423497563,1780168242000,-500.0,0.0002472,2]
[423497561,1780168242000,-551.39,0.0002472,2]
[423497566,1780168242000,-220.0,0.00025,2]
[423497569,1780168242000,-391.0,0.00025,2]
[423497570,1780168242000,-1047.61960593,0.00025,2]
[423497565,1780168242000,-152.0,0.000249,2]
[423497572,1780168242000,-755.0,0.00025,2]
[423497562,1780168242000,-500.0,0.0002472,2]
[423497571,1780168242000,-160.8477614,0.00025,2]
[423497640,1780168243000,-215.58360558,0.00027397,10]
[423497643,1780168243000,-213.32,0.00027397,2]
[423497641,1780168243000,-300.0,0.00027397,2]
[423497638,1780168243000,-150.0,0.00027397,2]
[423497629,1780168243000,-500.0,0.00027397,2]
[423497636,1780168243000,-500.0,0.00027397,2]
[423497637,1780168243000,-443.15839363,0.00027397,2]
[423497632,1780168243000,-500.0,0.00027397,2]
[423497633,1780168243000,-500.0,0.00027397,2]
[423497635,1780168243000,-500.0,0.00027397,2]
[423497650,1780168243000,-1053.63,0.0002755,30]
[423497655,1780168243000,-207.21,0.0002755,2]
[423497642,1780168243000,-647.75,0.00027397,20]
[423497645,1780168243000,-748.81,0.000274,7]
[423497644,1780168243000,-505.03,0.000274,7]
[423497649,1780168243000,-569.81,0.0002755,30]
[423497646,1780168243000,-1763.52,0.000274,14]
[423497647,1780168243000,-219.73804894,0.00027403,2]
[423497648,1780168243000,-150.0,0.00027521,2]
[423497652,1780168243000,-212.1,0.0002755,2]
[423497651,1780168243000,-621.55,0.0002755,30]
[423497653,1780168243000,-1053.64,0.0002755,30]
[423497654,1780168243000,-621.54,0.0002755,30]
[423497634,1780168243000,-500.0,0.00027397,2]
[423497639,1780168243000,-1500.0,0.00027397,2]
[423497630,1780168243000,-500.0,0.00027397,2]
[423497616,1780168243000,-500.0,0.00027396,2]
[423497628,1780168243000,-500.0,0.00027397,2]
[423497660,1780168243000,-207.21,0.00027611,30]
[423497604,1780168243000,-2991.49051684,0.00026151,2]
[423497605,1780168243000,-839.8089573,0.00026234,2]
[423497606,1780168243000,-126519.1621219,0.0002628,2]
[423497603,1780168243000,-516.65119899,0.00026048,2]
[423497610,1780168243000,-13939.90279654,0.00026892,2]
[423497614,1780168243000,-20471.33782947,0.00027148,2]
[423497609,1780168243000,-357.31,0.00026496,2]
[423497615,1780168243000,-151.0,0.00027394,7]
[423497607,1780168243000,-189.8,0.00026296,2]
[423497613,1780168243000,-2273.27,0.00027062,7]
[423497608,1780168243000,-781.3692469,0.00026314,2]
[423497612,1780168243000,-150.0,0.00026962,2]
[423497611,1780168243000,-150.0,0.00026962,2]
[423497617,1780168243000,-500.0,0.00027396,2]
[423497618,1780168243000,-500.0,0.00027396,2]
[423497620,1780168243000,-500.0,0.00027397,2]
[423497623,1780168243000,-500.0,0.00027397,2]
[423497622,1780168243000,-500.0,0.00027397,2]
[423497621,1780168243000,-500.0,0.00027397,2]
[423497619,1780168243000,-940.79,0.00027396,2]
[423497624,1780168243000,-500.0,0.00027397,2]
[423497625,1780168243000,-500.0,0.00027397,2]
[423497627,1780168243000,-500.0,0.00027397,2]
[423497626,1780168243000,-500.0,0.00027397,2]
[423497631,1780168243000,-500.0,0.00027397,2]
[423497661,1780168243000,-212.1,0.00027641,2]
[423497667,1780168243000,-207.21,0.00027672,7]
[423497659,1780168243000,-212.1,0.00027611,30]
[423497702,1780168243000,-212.1,0.00027916,2]
[423497701,1780168243000,-551.39,0.00027915,7]
[423497696,1780168243000,-1053.64,0.00027872,2]
[423497698,1780168243000,-212.1,0.00027885,30]
[423497699,1780168243000,-207.21,0.00027885,30]
[423497697,1780168243000,-621.54,0.00027872,2]
[423497700,1780168243000,-569.81,0.00027892,30]
[423497703,1780168243000,-207.21,0.00027916,2]
[423497704,1780168243000,-212.1,0.00027946,7]
[423497709,1780168243000,-200.0,0.00028,7]
[423497656,1780168243000,-569.81,0.00027572,7]
[423497705,1780168243000,-207.21,0.00027946,7]
[423497710,1780168243000,-200.0,0.00028,7]
[423497711,1780168243000,-200.0,0.00028,20]
[423497713,1780168243000,-600.0,0.00028,2]
[423497712,1780168243000,-209.00647482,0.00028,7]
[423497708,1780168243000,-207.21,0.00027977,30]
[423497706,1780168243000,-215.58360558,0.0002795,7]
[423497714,1780168243000,-212.1,0.00028007,2]
[423497719,1780168243000,-621.54,0.00028033,30]
[423497716,1780168243000,-1053.63,0.00028033,30]
[423497717,1780168243000,-621.55,0.00028033,30]
[423497718,1780168243000,-1053.64,0.00028033,30]
[423497715,1780168243000,-207.21,0.00028007,2]
[423497720,1780168243000,-212.1,0.00028038,7]
[423497693,1780168243000,-207.21,0.00027855,7]
[423497691,1780168243000,-207.21,0.00027824,2]
[423497707,1780168243000,-212.1,0.00027977,30]
[423497695,1780168243000,-621.55,0.00027872,2]
[423497657,1780168243000,-212.1,0.0002758,7]
[423497694,1780168243000,-1053.63,0.00027872,2]
[423497658,1780168243000,-207.21,0.0002758,7]
[423497662,1780168243000,-207.21,0.00027641,2]
[423497669,1780168243000,-212.1,0.00027702,30]
[423497677,1780168243000,-569.81,0.00027732,2]
[423497674,1780168243000,-621.55,0.00027711,7]
[423497675,1780168243000,-1053.64,0.00027711,7]
[423497664,1780168243000,-212.1,0.00027672,7]
[423497673,1780168243000,-1053.63,0.00027711,7]
[423497679,1780168243000,-207.21,0.00027733,2]
[423497676,1780168243000,-621.54,0.00027711,7]
[423497671,1780168243000,-207.21,0.00027702,30]
[423497678,1780168243000,-212.1,0.00027733,2]
[423497687,1780168243000,-150.0,0.00027815,2]
[423497692,1780168243000,-212.1,0.00027855,7]
[423497682,1780168243000,-212.1,0.00027794,30]
[423497684,1780168243000,-150.0,0.00027815,2]
[423497685,1780168243000,-150.0,0.00027815,2]
[423497689,1780168243000,-150.0,0.00027815,2]
[423497690,1780168243000,-212.1,0.00027824,2]
[423497683,1780168243000,-207.21,0.00027794,30]
[423497688,1780168243000,-150.0,0.00027815,2]
[423497681,1780168243000,-207.21,0.00027763,7]
[423497686,1780168243000,-150.0,0.00027815,2]
[423497680,1780168243000,-212.1,0.00027763,7]
[423497757,1780168244000,-161.92,0.00029,2]
[423497759,1780168244000,-265.92,0.00029,8]
[423497760,1780168244000,-265.92,0.00029,8]
[423497756,1780168244000,-161.92,0.00029,2]
[423497758,1780168244000,-161.92,0.00029,2]
[423497750,1780168244000,-569.89,0.00028855,30]
[423497754,1780168244000,-161.93,0.00029,2]
[423497753,1780168244000,-161.93,0.00029,2]
[423497762,1780168244000,-10000.0,0.00029,2]
[423497752,1780168244000,-1559.24062485,0.00028995,2]
[423497763,1780168244000,-150.0,0.00029095,2]
[423497755,1780168244000,-161.93,0.00029,2]
[423497766,1780168244000,-150.0,0.00029095,2]
[423497774,1780168244000,-151.0,0.00029095,2]
[423497765,1780168244000,-163.0,0.00029095,2]
[423497767,1780168244000,-150.0,0.00029095,2]
[423497770,1780168244000,-150.0,0.00029095,2]
[423497768,1780168244000,-151.536,0.00029095,2]
[423497769,1780168244000,-150.223,0.00029095,2]
[423497772,1780168244000,-150.524,0.00029095,2]
[423497771,1780168244000,-150.0,0.00029095,2]
[423497775,1780168244000,-150.597,0.00029095,2]
[423497786,1780168244000,-292.0,0.00029155,2]
[423497785,1780168244000,-150.0,0.00029155,2]
[423497776,1780168244000,-3550.0,0.00029095,2]
[423497761,1780168244000,-10000.0,0.00029,2]
[423497764,1780168244000,-150.0,0.00029095,2]
[423497751,1780168244000,-150.0,0.00028897,2]
[423497778,1780168244000,-1356.0,0.00029095,2]
[423497743,1780168244000,-189.8,0.00028267,2]
[423497726,1780168244000,-212.1,0.00028099,2]
[423497725,1780168244000,-2273.27,0.00028082,7]
[423497721,1780168244000,-207.21,0.00028038,7]
[423497723,1780168244000,-212.1,0.00028068,30]
[423497724,1780168244000,-207.21,0.00028068,30]
[423497722,1780168244000,-569.81,0.00028053,7]
[423497728,1780168244000,-215.58360558,0.000281,30]
[423497727,1780168244000,-207.21,0.00028099,2]
[423497729,1780168244000,-12082.93241268,0.00028108,2]
[423497734,1780168244000,-621.55,0.00028194,7]
[423497730,1780168244000,-212.24,0.0002813,7]
[423497736,1780168244000,-621.54,0.00028194,7]
[423497733,1780168244000,-1053.63,0.00028194,7]
[423497737,1780168244000,-187.08030932,0.00028201,2]
[423497731,1780168244000,-207.27,0.0002813,7]
[423497732,1780168244000,-169.47,0.0002814,3]
[423497735,1780168244000,-1053.64,0.00028194,7]
[423497738,1780168244000,-569.81,0.00028213,2]
[423497740,1780168244000,-177.84004506,0.00028243,2]
[423497749,1780168244000,-569.81,0.00028693,2]
[423497744,1780168244000,-569.81,0.00028373,30]
[423497748,1780168244000,-748.81,0.000286,7]
[423497741,1780168244000,-202.24863394,0.00028243,2]
[423497742,1780168244000,-191.41566632,0.00028243,2]
[423497746,1780168244000,-569.81,0.00028533,7]
[423497739,1780168244000,-162.33164099,0.00028243,2]
[423497747,1780168244000,-505.03,0.000286,7]
[423497745,1780168244000,-1763.52,0.000285,14]
[423497783,1780168244000,-932.0,0.00029095,2]
[423497773,1780168244000,-167.287,0.00029095,2]
[423497782,1780168244000,-3638.0,0.00029095,2]
[423497815,1780168244000,-184.0,0.00029619,30]
[423497820,1780168244000,-20471.33782947,0.00029898,2]
[423497824,1780168244000,-5800.0,0.000299,10]
[423497818,1780168244000,-6380.07179772,0.000298,2]
[423497823,1780168244000,-201.671,0.000299,24]
[423497819,1780168244000,-7106.14351012,0.0002983,2]
[423497817,1780168244000,-200.0,0.00029725,2]
[423497822,1780168244000,-2411.263,0.000299,24]
[423497821,1780168244000,-1763.52,0.000299,14]
[423497825,1780168244000,-204.89987102,0.000299,2]
[423497827,1780168244000,-150.0,0.00029922,2]
[423497830,1780168244000,-150.0,0.00029922,2]
[423497837,1780168244000,-389.178325,0.0003002,2]
[423497832,1780168244000,-505.03,0.0003,7]
[423497833,1780168244000,-748.81,0.0003,7]
[423497829,1780168244000,-150.0,0.00029922,2]
[423497835,1780168244000,-222.1416408,0.0003002,2]
[423497828,1780168244000,-150.0,0.00029922,2]
[423497831,1780168244000,-156.44778373,0.00029922,2]
[423497826,1780168244000,-150.0,0.00029922,2]
[423497834,1780168244000,-650.0,0.0003,2]
[423497836,1780168244000,-569.6088108,0.0003002,2]
[423497838,1780168244000,-350.0,0.00030027,15]
[423497840,1780168244000,-151.0,0.00030077,7]
[423497841,1780168244000,-500.0,0.00030079,120]
[423497839,1780168244000,-10294.6743,0.0003003,2]
[423497842,1780168244000,-500.0,0.00030079,120]
[423497814,1780168244000,-742.0,0.00029619,30]
[423497816,1780168244000,-1000.0,0.000297,7]
[423497784,1780168244000,-298.0,0.00029155,2]
[423497804,1780168244000,-158.0,0.00029614,30]
[423497810,1780168244000,-153.0,0.00029619,30]
[423497777,1780168244000,-797.925,0.00029095,2]
[423497779,1780168244000,-1412.213,0.00029095,2]
[423497780,1780168244000,-525.0,0.00029095,2]
[423497781,1780168244000,-1226.0,0.00029095,2]
[423497796,1780168244000,-324.66328198,0.00029568,2]
[423497787,1780168244000,-1429.21,0.00029159,120]
[423497794,1780168244000,-156.25649654,0.000295,64]
[423497790,1780168244000,-28230.2409061,0.00029226,2]
[423497793,1780168244000,-156.25649654,0.000295,64]
[423497792,1780168244000,-2273.27,0.00029271,7]
[423497798,1780168244000,-404.49726788,0.00029568,2]
[423497797,1780168244000,-355.68009013,0.00029568,2]
[423497800,1780168244000,-190.91207167,0.00029568,2]
[423497795,1780168244000,-374.16061864,0.00029524,2]
[423497799,1780168244000,-382.83133264,0.00029568,2]
[423497808,1780168244000,-347.0,0.00029619,30]
[423497803,1780168244000,-13939.90279654,0.00029591,2]
[423497806,1780168244000,-152.0,0.00029614,30]
[423497809,1780168244000,-152.0,0.00029619,30]
[423497812,1780168244000,-154.0,0.00029619,30]
[423497813,1780168244000,-156.0,0.00029619,30]
[423497802,1780168244000,-184.91719198,0.00029568,2]
[423497811,1780168244000,-379.0,0.00029619,30]
[423497805,1780168244000,-220.0,0.00029614,30]
[423497801,1780168244000,-212.25790073,0.00029568,2]
[423497789,1780168244000,-187.3867071,0.00029175,2]
[423497807,1780168244000,-226.0,0.00029614,30]
[423497877,1780168245000,-500.0,0.0003008,2]
[423497879,1780168245000,-500.0,0.0003008,2]
[423497882,1780168245000,-500.0,0.0003008,2]
[423497881,1780168245000,-500.0,0.0003008,2]
[423497876,1780168245000,-500.0,0.0003008,2]
[423497875,1780168245000,-500.0,0.0003008,2]
[423497886,1780168245000,-500.0,0.0003008,2]
[423497887,1780168245000,-500.0,0.0003008,2]
[423497885,1780168245000,-500.0,0.0003008,2]
[423497874,1780168245000,-500.0,0.0003008,2]
[423497884,1780168245000,-500.0,0.0003008,2]
[423497878,1780168245000,-500.0,0.0003008,2]
[423497883,1780168245000,-500.0,0.0003008,2]
[423497898,1780168245000,-201.069007,0.0003008,7]
[423497888,1780168245000,-500.0,0.0003008,2]
[423497891,1780168245000,-298.342053,0.0003008,2]
[423497893,1780168245000,-151.991218,0.0003008,7]
[423497890,1780168245000,-500.0,0.0003008,2]
[423497899,1780168245000,-201.069007,0.0003008,7]
[423497895,1780168245000,-517.131074,0.0003008,7]
[423497897,1780168245000,-517.131074,0.0003008,7]
[423497896,1780168245000,-517.131074,0.0003008,7]
[423497889,1780168245000,-500.0,0.0003008,2]
[423497894,1780168245000,-517.131074,0.0003008,7]
[423497892,1780168245000,-151.0,0.0003008,7]
[423497900,1780168245000,-201.069007,0.0003008,7]
[423497870,1780168245000,-500.0,0.0003008,2]
[423497880,1780168245000,-500.0,0.0003008,2]
[423497872,1780168245000,-500.0,0.0003008,2]
[423497858,1780168245000,-151.0,0.0003008,7]
[423497868,1780168245000,-500.0,0.0003008,2]
[423497901,1780168245000,-201.069007,0.0003008,7]
[423497844,1780168245000,-500.0,0.00030079,120]
[423497846,1780168245000,-500.0,0.00030079,120]
[423497850,1780168245000,-940.79,0.00030079,2]
[423497849,1780168245000,-940.79,0.00030079,2]
[423497845,1780168245000,-409.68996815,0.00030079,120]
[423497843,1780168245000,-500.0,0.00030079,120]
[423497848,1780168245000,-940.79,0.00030079,2]
[423497847,1780168245000,-500.0,0.00030079,120]
[423497852,1780168245000,-151.0,0.0003008,7]
[423497851,1780168245000,-148458.1062329,0.0003008,2]
[423497854,1780168245000,-230.882083,0.0003008,7]
[423497856,1780168245000,-151.0,0.0003008,7]
[423497857,1780168245000,-151.0,0.0003008,7]
[423497853,1780168245000,-151.0,0.0003008,7]
[423497859,1780168245000,-273.79528,0.0003008,7]
[423497860,1780168245000,-500.0,0.0003008,2]
[423497855,1780168245000,-151.0,0.0003008,7]
[423497861,1780168245000,-500.0,0.0003008,2]
[423497862,1780168245000,-500.0,0.0003008,2]
[423497863,1780168245000,-500.0,0.0003008,2]
[423497865,1780168245000,-500.0,0.0003008,2]
[423497864,1780168245000,-500.0,0.0003008,2]
[423497873,1780168245000,-500.0,0.0003008,2]
[423497866,1780168245000,-500.0,0.0003008,2]
[423497867,1780168245000,-500.0,0.0003008,2]
[423497869,1780168245000,-500.0,0.0003008,2]
[423497871,1780168245000,-500.0,0.0003008,2]
[423497911,1780168245000,-151.0,0.0003008,7]
[423497906,1780168245000,-151.0,0.0003008,7]
[423497964,1780168245000,-152.0,0.00030165,7]
[423497947,1780168245000,-341729.74590981,0.0003013,7]
[423497937,1780168245000,-207.9347959,0.00030129,120]
[423497946,1780168245000,-940.79,0.00030129,2]
[423497943,1780168245000,-500.0,0.00030129,120]
[423497945,1780168245000,-940.79,0.00030129,2]
[423497948,1780168245000,-200.0,0.0003013,2]
[423497941,1780168245000,-551.39,0.00030129,7]
[423497942,1780168245000,-551.43,0.00030129,7]
[423497939,1780168245000,-551.39,0.00030129,7]
[423497938,1780168245000,-551.39,0.00030129,7]
[423497944,1780168245000,-500.0,0.00030129,120]
[423497961,1780168245000,-151.0,0.00030137,7]
[423497960,1780168245000,-213.32,0.00030137,2]
[423497959,1780168245000,-514.0,0.00030135,30]
[423497949,1780168245000,-200.0,0.0003013,2]
[423497951,1780168245000,-207.00864086,0.0003013,15]
[423497955,1780168245000,-151.0,0.0003013,7]
[423497956,1780168245000,-151.0,0.0003013,7]
[423497957,1780168245000,-151.0,0.0003013,7]
[423497954,1780168245000,-151.0,0.0003013,7]
[423497950,1780168245000,-200.0,0.0003013,15]
[423497958,1780168245000,-151.0,0.0003013,7]
[423497952,1780168245000,-151.0,0.0003013,7]
[423497953,1780168245000,-151.0,0.0003013,7]
[423497962,1780168245000,-200.0,0.00030137,2]
[423497902,1780168245000,-232.10735,0.0003008,7]
[423497963,1780168245000,-517.9505246,0.00030137,2]
[423497935,1780168245000,-151.0,0.00030127,7]
[423497934,1780168245000,-152.0,0.00030104,7]
[423497940,1780168245000,-551.39,0.00030129,7]
[423497928,1780168245000,-166.460247,0.0003008,7]
[423497907,1780168245000,-151.0,0.0003008,7]
[423497933,1780168245000,-152.0,0.00030104,7]
[423497912,1780168245000,-151.0,0.0003008,7]
[423497904,1780168245000,-232.10735,0.0003008,7]
[423497903,1780168245000,-232.10735,0.0003008,7]
[423497910,1780168245000,-151.0,0.0003008,7]
[423497908,1780168245000,-151.0,0.0003008,7]
[423497909,1780168245000,-151.0,0.0003008,7]
[423497915,1780168245000,-494.984044,0.0003008,7]
[423497924,1780168245000,-151.0,0.0003008,7]
[423497916,1780168245000,-494.984044,0.0003008,7]
[423497914,1780168245000,-151.0,0.0003008,7]
[423497913,1780168245000,-151.0,0.0003008,7]
[423497917,1780168245000,-494.984044,0.0003008,7]
[423497905,1780168245000,-232.10735,0.0003008,7]
[423497919,1780168245000,-3802.368531,0.0003008,7]
[423497920,1780168245000,-3802.368531,0.0003008,7]
[423497927,1780168245000,-166.460247,0.0003008,7]
[423497932,1780168245000,-213.522652,0.0003008,7]
[423497925,1780168245000,-166.460247,0.0003008,7]
[423497930,1780168245000,-213.522652,0.0003008,7]
[423497931,1780168245000,-213.522652,0.0003008,7]
[423497929,1780168245000,-213.522652,0.0003008,7]
[423497926,1780168245000,-166.460247,0.0003008,7]
[423497921,1780168245000,-3802.368531,0.0003008,7]
[423497922,1780168245000,-3802.368531,0.0003008,7]
[423497918,1780168245000,-494.984044,0.0003008,7]
[423497923,1780168245000,-151.0,0.0003008,7]
[423497936,1780168245000,-500.0,0.00030129,120]